[Event "FIDE World Cup O10-TB 2024"]
[Site "Batumi"]
[Date "2024.07.02"]
[Round "2.19"]
[White "Muhammad Shayan Noushad Ibrahi"]
[Black "Obado, Sean Adrich"]
[Result "1-0"]
[ECO "C44"]
[WhiteElo "1785"]
[BlackElo "1631"]
[Annotator "NA RC"]
[PlyCount "83"]
[EventDate "2024.06.23"]
[EventType "swiss"]
[EventCountry "GEO"]
[SourceTitle "playchess.com"]
[Source "ChessBase"]
[SourceQuality "1"]
[TimeControl "5400+30"]

1. e4 {[%emt 0:01:16]} e5 {[%emt 0:00:01]} 2. Nf3 {[%emt 0:01:36]} Nc6 {[%emt 0:00:01]} 3. c3 {[%emt 0:01:23]} Nf6 {[%emt 0:00:10]} 4. d4 {[%emt 0:03:32]} Nxe4 {[%emt 0:00:09]} 5. d5 {[%emt 0:01:27]} Bc5 {[%emt 0:00:12]} 6. dxc6 {[%emt 0:02:46]} Bxf2+ {[%emt 0:00:07]} 7. Ke2 {[%emt 0:01:17]} Bb6 {[%emt 0:00:08]} 8. Qd5 {[%emt 0:01:34]} Nf2 {[%emt 0:00:16]} 9. Rg1 {[%emt 0:02:25]} bxc6 {[%emt 0:09:40]} 10. Qxe5+ {[%emt 0:06:08]} Kf8 {[%emt 0:00:42]} 11. Nd4 {[%emt 0:01:54]} Ng4 {[%emt 0:04:25]} 12. Qg3 {[%emt 0:01:13]} d6 {[%emt 0:14:03]} 13. h3 {[%emt 0:01:59]} Ne5 {[%emt 0:00:08]} 14. Be3 {[%emt 0:00:59]} c5 {[%emt 0:09:15]} 15. Nb3 {[%emt 0:03:25]} Nc4 {[%emt 0:01:01]} 16. N1d2 {[%emt 0:03:54]} Nxb2 {[%emt 0:01:22]} 17. Kf2 {[%emt 0:02:34]} Bb7 {[%emt 0:06:27]} 18. Be2 {[%emt 0:02:55]} Qf6+ {[%emt 0:00:43]} 19. Nf3 {[%emt 0:01:36]} Qxc3 {[%emt 0:03:45]} 20. Rgc1 {[%emt 0:01:52]} Nd3+ {[%emt 0:00:15]} 21. Bxd3 {[%emt 0:00:39]} Qxd3 {[%emt 0:00:03]} 22. Rd1 {[%emt 0:00:36]} Qb5 {[%emt 0:07:06]} 23. Kg1 {[%emt 0:00:27]} a5 {[%emt 0:07:32]} 24. Ng5 {[%emt 0:05:51]} h6 {[%emt 0:00:59]} 25. Nf3 {[%emt 0:01:19]} a4 {[%emt 0:02:08]} 26. Nbd2 {[%emt 0:00:23]} Re8 {[%emt 0:08:25]} 27. Bf2 {[%emt 0:03:50]} c4 {[%emt 0:09:18]} 28. Rab1 {[%emt 0:00:46]} Bxf2+ {[%emt 0:00:14]} 29. Qxf2 {[%emt 0:00:10]} Qa6 {[%emt 0:00:22]} 30. Qd4 {[%emt 0:01:34]} f6 {[%emt 0:03:32]} 31. Rdc1 {[%emt 0:10:47]} c5 {[%emt 0:03:13]} 32. Qxc4 {[%emt 0:01:55]} Qa7 {[%emt 0:01:14]} 33. Nh4 {[%emt 0:00:18]} Ke7 {[%emt 0:01:11]} 34. Ng6+ {[%emt 0:00:09]} Kd7 {[%emt 0:01:00]} 35. Nxh8 {[%emt 0:00:11]} Rxh8 {[%emt 0:00:00]} 36. Qf7+ {[%emt 0:00:42]} Kc8 {[%emt 0:00:39]} 37. Nc4 {[%emt 0:00:25]} Rd8 {[%emt 0:00:16]} 38. Qe7 {[%emt 0:00:37]} Rd7 {[%emt 0:00:49]} 39. Nxd6+ {[%emt 0:00:27]} Kc7 {[%emt 0:00:12]} 40. Qxd7+ {[%emt 0:00:15]} Kxd7 {[%emt 0:00:16]} 41. Rxb7+ {[%emt 0:00:06]} Qxb7 {[%emt 0:00:20]} 42. Nxb7 {[%emt 0:00:12]} 1-0

[Event "FIDE World Cup O10-TB 2024"]
[Site "Batumi"]
[Date "2024.07.02"]
[Round "2.20"]
[White "Tsulaia, Giorgi"]
[Black "Akramov, Khusan"]
[Result "0-1"]
[ECO "B35"]
[WhiteElo "1646"]
[BlackElo "1477"]
[Annotator "NA RC"]
[PlyCount "114"]
[EventDate "2024.06.23"]
[EventType "swiss"]
[EventCountry "GEO"]
[SourceTitle "playchess.com"]
[Source "ChessBase"]
[SourceQuality "1"]
[TimeControl "5400+30"]

1. e4 {[%emt 0:07:06]} c5 {[%emt 0:00:04]} 2. Nf3 {[%emt 0:00:04]} g6 {[%emt 0:00:05]} 3. d4 {[%emt 0:00:08]} cxd4 {[%emt 0:00:04]} 4. Nxd4 {[%emt 0:00:03]} Nc6 {[%emt 0:00:04]} 5. Nc3 {[%emt 0:00:14]} Bg7 {[%emt 0:00:05]} 6. Be3 {[%emt 0:00:25]} Nf6 {[%emt 0:00:05]} 7. Bc4 {[%emt 0:02:01]} O-O {[%emt 0:00:06]} 8. Bb3 {[%emt 0:04:28]} Re8 {[%emt 0:00:17]} 9. O-O {[%emt 0:04:08]} d6 {[%emt 0:01:24]} 10. f3 {[%emt 0:04:42]} Na5 {[%emt 0:00:10]} 11. Qd2 {[%emt 0:01:18]} b6 {[%emt 0:00:37]} 12. Qd3 {[%emt 0:10:37]} Nd7 {[%emt 0:03:31]} 13. Bd5 {[%emt 0:04:34]} Ne5 {[%emt 0:04:10]} 14. Qe2 {[%emt 0:02:27]} Rb8 {[%emt 0:07:58]} 15. f4 {[%emt 0:11:20]} Ng4 {[%emt 0:10:13]} 16. Qd2 {[%emt 0:17:19]} Nxe3 {[%emt 0:01:24]} 17. Qxe3 {[%emt 0:00:08]} Ba6 {[%emt 0:02:29]} 18. Rfe1 {[%emt 0:00:58]} Rc8 {[%emt 0:01:33]} 19. Rad1 {[%emt 0:04:29]} Nc4 {[%emt 0:04:20]} 20. Bxc4 {[%emt 0:01:25]} Rxc4 {[%emt 0:02:23]} 21. Nde2 {[%emt 0:03:27]} Qc8 {[%emt 0:02:35]} 22. Rd2 {[%emt 0:01:26]} Qc5 {[%emt 0:01:50]} 23. Qxc5 {[%emt 0:00:34]} Rxc5 {[%emt 0:00:12]} 24. Rd5 {[%emt 0:03:11]} Rec8 {[%emt 0:01:03]} 25. Rxc5 {[%emt 0:05:02]} Rxc5 {[%emt 0:00:12]} 26. Kf2 {[%emt 0:00:40]} Bxe2 {[%emt 0:00:11]} 27. Kxe2 {[%emt 0:00:23]} Bxc3 {[%emt 0:00:11]} 28. bxc3 {[%emt 0:00:03]} Rxc3 {[%emt 0:00:03]} 29. Kd2 {[%emt 0:00:14]} Ra3 {[%emt 0:00:11]} 30. Ra1 {[%emt 0:00:33]} e5 {[%emt 0:02:05]} 31. fxe5 {[%emt 0:00:30]} dxe5 {[%emt 0:00:06]} 32. c3 {[%emt 0:00:05]} f5 {[%emt 0:00:25]} 33. exf5 {[%emt 0:00:11]} gxf5 {[%emt 0:00:05]} 34. Kc2 {[%emt 0:00:43]} Ra4 {[%emt 0:00:10]} 35. Kb3 {[%emt 0:00:45]} Rf4 {[%emt 0:00:16]} 36. Re1 {[%emt 0:00:36]} e4 {[%emt 0:00:07]} 37. Re2 {[%emt 0:00:08]} Kf7 {[%emt 0:00:09]} 38. Kc4 {[%emt 0:00:25]} Ke6 {[%emt 0:00:38]} 39. Kd4 {[%emt 0:01:21]} Rf1 {[%emt 0:00:24]} 40. Rd2 {[%emt 0:04:15]} Re1 {[%emt 0:00:35]} 41. c4 {[%emt 0:08:34]} f4 {[%emt 0:03:19]} 42. Rf2 {[%emt 0:00:00]} Kf5 {[%emt 0:00:08]} 43. h3 {[%emt 0:00:00]} h5 {[%emt 0:00:35]} 44. Rd2 {[%emt 0:00:00]} e3 {[%emt 0:01:26]} 45. Rb2 {[%emt 0:00:00]} Rd1+ {[%emt 0:00:20]} 46. Kc3 {[%emt 0:00:00]} Ke4 {[%emt 0:00:23]} 47. Rc2 {[%emt 0:00:00]} a5 {[%emt 0:00:15]} 48. Rb2 {[%emt 0:00:00]} Rd3+ {[%emt 0:00:06]} 49. Kc2 {[%emt 0:00:00]} Rd2+ {[%emt 0:00:05]} 50. Kc3 {[%emt 0:00:00]} Rxb2 {[%emt 0:00:06]} 51. h4 {[%emt 0:00:00]} Rxg2 {[%emt 0:00:10]} 52. c5 {[%emt 0:00:00]} bxc5 {[%emt 0:00:04]} 53. a4 {[%emt 0:00:00]} e2 {[%emt 0:00:05]} 54. Kd2 {[%emt 0:00:00]} e1=Q+ {[%emt 0:00:35]} 55. Kxe1 {[%emt 0:00:00]} Ke3 {[%emt 0:00:03]} 56. Kd1 {[%emt 0:00:00]} f3 {[%emt 0:00:06]} 57. Ke1 {[%emt 0:00:00]} Rg1# {[%emt 0:00:03]} 0-1

[Event "FIDE World Cup O10-TB 2024"]
[Site "Batumi"]
[Date "2024.07.02"]
[Round "2.21"]
[White "Kiringoda, Thehas Rithmitha"]
[Black "Chkhartishvili, Lazare"]
[Result "1/2-1/2"]
[ECO "D02"]
[WhiteElo "1641"]
[BlackElo "1608"]
[Annotator "NA RC"]
[PlyCount "156"]
[EventDate "2024.06.23"]
[EventType "swiss"]
[EventCountry "GEO"]
[SourceTitle "playchess.com"]
[Source "ChessBase"]
[SourceQuality "1"]
[TimeControl "5400+30"]

1. d4 {[%emt 0:00:15]} Nf6 {[%emt 0:00:04]} 2. Bf4 {[%emt 0:00:26]} d5 {[%emt 0:00:08]} 3. e3 {[%emt 0:00:23]} c5 {[%emt 0:00:06]} 4. c3 {[%emt 0:00:11]} Nc6 {[%emt 0:00:06]} 5. Nf3 {[%emt 0:00:08]} Qb6 {[%emt 0:00:14]} 6. Qc2 {[%emt 0:00:25]} g6 {[%emt 0:00:25]} 7. Nbd2 {[%emt 0:02:10]} Bg7 {[%emt 0:00:43]} 8. Be2 {[%emt 0:01:24]} O-O {[%emt 0:00:33]} 9. O-O {[%emt 0:01:22]} Nh5 {[%emt 0:10:59]} 10. Bg3 {[%emt 0:05:16]} Nxg3 {[%emt 0:00:21]} 11. hxg3 {[%emt 0:00:10]} e5 {[%emt 0:00:50]} 12. dxe5 {[%emt 0:00:47]} Nxe5 {[%emt 0:00:08]} 13. Nxe5 {[%emt 0:00:19]} Bxe5 {[%emt 0:00:26]} 14. Nf3 {[%emt 0:00:39]} Bg7 {[%emt 0:00:31]} 15. Rad1 {[%emt 0:00:38]} Be6 {[%emt 0:07:31]} 16. Rd2 {[%emt 0:07:49]} Qc6 {[%emt 0:08:15]} 17. Rfd1 {[%emt 0:00:58]} b5 {[%emt 0:04:39]} 18. Ng5 {[%emt 0:03:21]} Qb6 {[%emt 0:05:39]} 19. Bf3 {[%emt 0:01:39]} Bh6 {[%emt 0:06:05]} 20. Nh3 {[%emt 0:01:20]} Bf5 {[%emt 0:03:11]} 21. Qc1 {[%emt 0:01:12]} d4 {[%emt 0:00:44]} 22. cxd4 {[%emt 0:00:14]} cxd4 {[%emt 0:00:20]} 23. Rxd4 {[%emt 0:01:05]} Rac8 {[%emt 0:00:10]} 24. Qa1 {[%emt 0:02:21]} Rc2 {[%emt 0:03:20]} 25. g4 {[%emt 0:04:58]} Be6 {[%emt 0:02:57]} 26. Be4 {[%emt 0:00:30]} Rc5 {[%emt 0:06:02]} 27. Bd5 {[%emt 0:01:33]} Bg7 {[%emt 0:05:30]} 28. Bxe6 {[%emt 0:00:39]} Qxe6 {[%emt 0:00:23]} 29. Rd8 {[%emt 0:06:30]} Qxg4 {[%emt 0:04:08]} 30. Rxf8+ {[%emt 0:00:09]} Bxf8 {[%emt 0:00:11]} 31. Rd4 {[%emt 0:00:43]} Qc8 {[%emt 0:00:38]} 32. Rd1 {[%emt 0:01:47]} Rc2 {[%emt 0:01:40]} 33. Nf4 {[%emt 0:00:44]} Bg7 {[%emt 0:00:26]} 34. Nd5 {[%emt 0:00:26]} Qc5 {[%emt 0:02:20]} 35. b4 {[%emt 0:01:34]} Qxd5 {[%emt 0:02:17]} 36. Qxg7+ {[%emt 0:00:08]} Kxg7 {[%emt 0:00:05]} 37. Rxd5 {[%emt 0:00:14]} a6 {[%emt 0:00:41]} 38. a4 {[%emt 0:00:52]} bxa4 {[%emt 0:00:21]} 39. Ra5 {[%emt 0:54:41]} Rc6 {[%emt 0:00:47]} 40. Rxa4 {[%emt 0:00:00]} Kf6 {[%emt 0:00:14]} 41. Kf1 {[%emt 0:00:00]} Ke6 {[%emt 0:01:52]} 42. Ke2 {[%emt 0:00:00]} h5 {[%emt 0:01:23]} 43. g3 {[%emt 0:02:00]} f6 {[%emt 0:01:15]} 44. Kd3 {[%emt 0:00:00]} Kd6 {[%emt 0:01:03]} 45. Ra5 {[%emt 0:01:00]} Ke6 {[%emt 0:02:18]} 46. e4 {[%emt 0:00:30]} Kd7 {[%emt 0:06:49]} 47. f4 {[%emt 0:00:00]} Ke6 {[%emt 0:00:28]} 48. f5+ {[%emt 0:00:00]} gxf5 {[%emt 0:01:37]} 49. Rxf5 {[%emt 0:00:00]} Rc8 {[%emt 0:00:52]} 50. Rxh5 {[%emt 0:00:00]} Rg8 {[%emt 0:00:16]} 51. Ra5 {[%emt 0:00:00]} Rxg3+ {[%emt 0:00:32]} 52. Kd4 {[%emt 0:00:00]} Rg1 {[%emt 0:00:46]} 53. Rxa6+ {[%emt 0:00:00]} Ke7 {[%emt 0:00:07]} 54. b5 {[%emt 0:00:00]} Rd1+ {[%emt 0:00:06]} 55. Kc5 {[%emt 0:00:00]} Rc1+ {[%emt 0:00:19]} 56. Kb6 {[%emt 0:00:00]} Kd7 {[%emt 0:02:01]} 57. Ka7 {[%emt 0:00:00]} Rc7+ {[%emt 0:00:07]} 58. Kb6 {[%emt 0:00:00]} Rc4 {[%emt 0:00:15]} 59. Ra7+ {[%emt 0:00:00]} Kd6 {[%emt 0:00:29]} 60. Ra6 {[%emt 0:00:00]} Kd7 {[%emt 0:00:04]} 61. Ra5 {[%emt 0:00:00]} Rxe4 {[%emt 0:00:48]} 62. Ka7 {[%emt 0:00:00]} Re5 {[%emt 0:00:27]} 63. Ka6 {[%emt 0:00:00]} Kc8 {[%emt 0:00:24]} 64. Ra2 {[%emt 0:00:00]} Kb8 {[%emt 0:00:23]} 65. Rd2 {[%emt 0:00:00]} Re8 {[%emt 0:00:15]} 66. Rd6 {[%emt 0:00:00]} Rf8 {[%emt 0:00:07]} 67. Rd4 {[%emt 0:00:00]} f5 {[%emt 0:00:09]} 68. Rf4 {[%emt 0:00:00]} Rf7 {[%emt 0:00:10]} 69. Kb6 {[%emt 0:00:00]} Rf6+ {[%emt 0:00:06]} 70. Kc5 {[%emt 0:00:00]} Kb7 {[%emt 0:00:03]} 71. Rh4 {[%emt 0:00:00]} Rf7 {[%emt 0:00:14]} 72. Ra4 {[%emt 0:00:00]} f4 {[%emt 0:00:27]} 73. Ra2 {[%emt 0:00:00]} f3 {[%emt 0:00:08]} 74. Rf2 {[%emt 0:00:00]} Rf5+ {[%emt 0:00:02]} 75. Kd4 {[%emt 0:00:00]} Kb6 {[%emt 0:00:06]} 76. Ke4 {[%emt 0:00:00]} Rf8 {[%emt 0:00:10]} 77. Rxf3 {[%emt 0:00:00]} Rxf3 {[%emt 0:00:04]} 78. Kxf3 {[%emt 0:00:00]} Kxb5 {[%emt 0:18:40]} 1/2-1/2

[Event "FIDE World Cup O10-TB 2024"]
[Site "Batumi"]
[Date "2024.07.02"]
[Round "2.22"]
[White "Wee, Yu Xi Lyndon"]
[Black "Jibladze, Nikoloz"]
[Result "0-1"]
[ECO "E97"]
[WhiteElo "1408"]
[BlackElo "1612"]
[Annotator "NA RC"]
[PlyCount "78"]
[EventDate "2024.06.23"]
[EventType "swiss"]
[EventCountry "GEO"]
[SourceTitle "playchess.com"]
[Source "ChessBase"]
[SourceQuality "1"]
[TimeControl "5400+30"]

1. d4 {[%emt 0:00:28]} Nf6 {[%emt 0:00:04]} 2. c4 {[%emt 0:00:31]} g6 {[%emt 0:01:57]} 3. Nc3 {[%emt 0:02:23]} Bg7 {[%emt 0:01:01]} 4. e4 {[%emt 0:00:54]} d6 {[%emt 0:00:41]} 5. Nf3 {[%emt 0:00:40]} O-O {[%emt 0:02:51]} 6. Be2 {[%emt 0:03:39]} Nc6 {[%emt 1:26:56]} 7. O-O {[%emt 0:02:12]} e5 {[%emt 0:00:00]} 8. d5 {[%emt 0:02:45]} Ne7 {[%emt 0:00:00]} 9. h3 {[%emt 0:02:57]} Ne8 {[%emt 0:00:00]} 10. Bg5 {[%emt 0:03:10]} h6 {[%emt 0:00:00]} 11. Be3 {[%emt 0:02:22]} f5 {[%emt 0:00:00]} 12. exf5 {[%emt 0:02:33]} gxf5 {[%emt 0:00:00]} 13. Nh2 {[%emt 0:04:44]} f4 {[%emt 0:00:00]} 14. Bd2 {[%emt 0:00:50]} Nf5 {[%emt 0:00:00]} 15. Bh5 {[%emt 0:01:58]} Nf6 {[%emt 0:00:00]} 16. Bf3 {[%emt 0:03:45]} Nd4 {[%emt 0:00:00]} 17. Re1 {[%emt 0:03:14]} Nh7 {[%emt 0:05:30]} 18. Ne4 {[%emt 0:03:29]} Nxf3+ {[%emt 0:00:00]} 19. Qxf3 {[%emt 0:02:27]} Ng5 {[%emt 0:00:00]} 20. Qb3 {[%emt 0:01:28]} Nxe4 {[%emt 0:00:00]} 21. Rxe4 {[%emt 0:01:09]} Qf6 {[%emt 0:00:00]} 22. Bc3 {[%emt 0:03:07]} Qg6 {[%emt 0:00:00]} 23. f3 {[%emt 0:01:33]} Bxh3 {[%emt 0:00:00]} 24. Re2 {[%emt 0:01:24]} e4 {[%emt 0:00:00]} 25. Bxg7 {[%emt 0:01:45]} Qxg7 {[%emt 0:00:00]} 26. fxe4 {[%emt 0:00:08]} Bg4 {[%emt 0:00:00]} 27. Nxg4 {[%emt 0:00:29]} Qxg4 {[%emt 0:00:00]} 28. Qf3 {[%emt 0:00:12]} Qh4 {[%emt 0:00:00]} 29. Qh3 {[%emt 0:01:09]} Qg5 {[%emt 0:00:00]} 30. Kf2 {[%emt 0:01:07]} Rf6 {[%emt 0:00:00]} 31. Kf3 {[%emt 0:01:05]} Raf8 {[%emt 0:00:00]} 32. Qg4 {[%emt 0:00:47]} Rg6 {[%emt 0:00:00]} 33. Qxg5 {[%emt 0:00:30]} hxg5 {[%emt 0:00:00]} 34. g4 {[%emt 0:00:31]} Rh6 {[%emt 0:00:00]} 35. Rg1 {[%emt 0:00:53]} Rh3+ {[%emt 0:00:00]} 36. Kf2 {[%emt 0:00:31]} f3 {[%emt 0:00:00]} 37. Rd2 {[%emt 0:01:16]} Rf4 {[%emt 0:00:00]} 38. Rd3 {[%emt 0:01:29]} Rxe4 {[%emt 0:00:00]} 39. Rxf3 {[%emt 0:00:13]} Rh2+ {[%emt 0:00:00]} 0-1

[Event "FIDE World Cup O10-TB 2024"]
[Site "Batumi"]
[Date "2024.07.02"]
[Round "2.24"]
[White "Dien James"]
[Black "Popov, Aleksandr And"]
[Result "0-1"]
[ECO "C45"]
[WhiteElo "1419"]
[BlackElo "1661"]
[Annotator "NA RC"]
[PlyCount "80"]
[EventDate "2024.06.23"]
[EventType "swiss"]
[EventCountry "GEO"]
[SourceTitle "playchess.com"]
[Source "ChessBase"]
[SourceQuality "1"]
[TimeControl "5400+30"]

1. e4 {[%emt 0:00:03]} e5 {[%emt 0:00:04]} 2. Nf3 {[%emt 0:00:07]} Nc6 {[%emt 0:00:03]} 3. d4 {[%emt 0:00:20]} exd4 {[%emt 0:00:04]} 4. Nxd4 {[%emt 0:00:10]} Nf6 {[%emt 0:00:04]} 5. f3 {[%emt 0:00:31]} Bc5 {[%emt 0:18:08]} 6. Be3 {[%emt 0:00:48]} Nxe4 {[%emt 0:22:31]} 7. fxe4 {[%emt 0:01:20]} Nxd4 {[%emt 0:02:46]} 8. Bxd4 {[%emt 0:00:41]} Qh4+ {[%emt 0:00:09]} 9. g3 {[%emt 0:02:54]} Qxe4+ {[%emt 0:00:40]} 10. Qe2 {[%emt 0:00:04]} Qxe2+ {[%emt 0:00:06]} 11. Bxe2 {[%emt 0:00:17]} Bxd4 {[%emt 0:00:09]} 12. c3 {[%emt 0:00:03]} Bb6 {[%emt 0:00:54]} 13. Nd2 {[%emt 0:00:13]} d6 {[%emt 0:01:51]} 14. O-O-O {[%emt 0:00:11]} Bd7 {[%emt 0:02:02]} 15. Bc4 {[%emt 0:01:49]} O-O {[%emt 0:03:41]} 16. Rhf1 {[%emt 0:00:17]} Be6 {[%emt 0:01:35]} 17. Bxe6 {[%emt 0:02:03]} fxe6 {[%emt 0:00:09]} 18. Rxf8+ {[%emt 0:00:04]} Rxf8 {[%emt 0:00:07]} 19. Nc4 {[%emt 0:00:39]} Rf2 {[%emt 0:00:35]} 20. Nxb6 {[%emt 0:00:29]} axb6 {[%emt 0:02:18]} 21. Re1 {[%emt 0:00:58]} e5 {[%emt 0:00:11]} 22. h3 {[%emt 0:00:18]} Rh2 {[%emt 0:00:21]} 23. h4 {[%emt 0:00:10]} Rg2 {[%emt 0:00:14]} 24. Re3 {[%emt 0:00:14]} Kf7 {[%emt 0:00:28]} 25. Rf3+ {[%emt 0:00:31]} Kg6 {[%emt 0:00:09]} 26. a4 {[%emt 1:28:16]} e4 {[%emt 0:05:48]} 27. Re3 {[%emt 0:00:00]} d5 {[%emt 0:00:11]} 28. c4 {[%emt 0:00:00]} c6 {[%emt 0:00:46]} 29. Rb3 {[%emt 0:00:00]} d4 {[%emt 0:01:24]} 30. Rxb6 {[%emt 0:00:00]} d3 {[%emt 0:00:48]} 31. Rb3 {[%emt 0:00:00]} Rxg3 {[%emt 0:03:08]} 32. Rxb7 {[%emt 0:00:00]} e3 {[%emt 0:00:12]} 33. Kb1 {[%emt 0:00:00]} e2 {[%emt 0:00:27]} 34. Ka2 {[%emt 0:00:00]} e1=Q {[%emt 0:01:40]} 35. Rb6 {[%emt 0:00:00]} Qe4 {[%emt 0:00:17]} 36. a5 {[%emt 0:00:00]} Qxc4+ {[%emt 0:00:09]} 37. b3 {[%emt 0:00:00]} Qc5 {[%emt 0:00:27]} 38. Ra6 {[%emt 0:00:00]} Rg2+ {[%emt 0:00:07]} 39. Kb1 {[%emt 0:00:00]} Qc2+ {[%emt 0:00:24]} 40. Ka1 {[%emt 0:00:00]} Qa2# {[%emt 0:35:23]} 0-1